bitfinex/quotes_SOLUSD_20250425
["timestamp","ask_amount","ask_price","bid_price","bid_amount"]
[1745589771624,32.3914186,153.93,153.88,16.643]
[1745589771827,32.3914186,153.92,153.88,49.0344186]
[1745589772026,32.3914186,153.91,153.88,16.643]
[1745589772216,32.3914186,153.92,153.88,16.643]
[1745589772423,32.3914186,153.93,153.89,32.3914186]
[1745589772622,34.80880196,153.92,153.88,49.0344186]
[1745589772823,2.41738336,153.92,153.89,32.3914186]
[1745589773134,2.41738336,153.92,153.9,32.3914186]
[1745589773299,2.41738336,153.92,153.89,32.3914186]
[1745589773497,34.80880196,153.93,153.89,32.3914186]
[1745589774126,32.3914186,153.93,153.89,32.3914186]
[1745589774510,32.3914186,153.95,153.91,32.3914186]
[1745589774832,34.80780636,153.94,153.9,32.3914186]
[1745589775003,32.3914186,153.93,153.89,32.3914186]
[1745589775820,32.3914186,153.94,153.89,32.3914186]
[1745589776033,32.3914186,153.96,153.92,32.3914186]
[1745589776338,32.3914186,153.97,153.92,32.3914186]
[1745589776515,32.3914186,153.98,153.93,32.3914186]
[1745589776718,32.3914186,153.97,153.92,32.3914186]
[1745589777220,32.3914186,153.97,153.93,32.3914186]
[1745589778228,32.3914186,153.96,153.92,32.3914186]
[1745589779231,32.3914186,153.97,153.92,32.3914186]
[1745589779618,2.41572906,153.96,153.92,32.3914186]
[1745589780015,2.41572906,153.96,153.89,6.49812292]
[1745589780212,2.41572906,153.96,153.92,32.3914186]
[1745589780535,2.41572906,153.96,153.95,32.3914186]
[1745589781439,32.3914186,153.96,153.89,6.49801967]
[1745589781628,32.3914186,153.93,153.88,22.8315]
[1745589781807,32.3914186,153.93,153.88,55.2229186]
[1745589782013,32.3914186,153.95,153.9,32.3914186]
[1745589782238,32.3914186,153.94,153.9,32.3914186]
[1745589782540,32.3914186,153.94,153.89,32.3914186]
[1745589782719,32.3914186,153.94,153.9,32.3914186]
[1745589782922,32.3914186,153.95,153.9,32.3914186]
[1745589783117,32.3914186,153.98,153.93,32.3914186]
[1745589783310,32.3914186,153.99,153.94,32.3914186]
[1745589783515,32.3914186,153.98,153.94,32.3914186]
[1745589784019,32.3914186,153.97,153.91,0.14216157]
[1745589784316,32.3914186,153.96,153.92,32.3914186]
[1745589784522,32.3914186,153.94,153.88,0.063]
[1745589784727,32.3914186,153.94,153.89,32.3914186]
[1745589784926,32.3914186,153.93,153.89,32.3914186]
[1745589785139,32.3914186,153.91,153.88,0.063]
[1745589785442,32.3914186,153.94,153.9,32.3914186]
[1745589785815,32.3914186,153.94,153.89,32.3914186]
[1745589786037,32.3914186,153.93,153.89,32.3914186]
[1745589786243,32.3914186,153.93,153.88,0.063]
[1745589786544,32.3914186,153.94,153.9,32.3914186]
[1745589787320,32.3914186,153.92,153.88,32.4544186]
[1745589787517,32.3914186,153.93,153.89,32.3914186]
[1745589788026,58.3914186,153.95,153.9,32.3914186]
[1745589788238,32.3914186,153.94,153.9,32.3914186]
[1745589788413,26.0,153.95,153.9,32.3914186]
[1745589788612,58.3914186,153.95,153.9,32.3914186]
[1745589788918,2.41720126,153.94,153.91,32.3914186]
[1745589789310,34.80861986,153.94,153.9,32.3914186]
[1745589789732,32.3914186,153.94,153.9,32.3914186]
[1745589791140,32.3914186,153.93,153.88,32.4544186]
[1745589791354,32.3914186,153.94,153.89,32.3914186]
[1745589791519,32.3914186,153.94,153.9,32.3914186]
[1745589791723,32.3914186,153.92,153.88,32.4544186]
[1745589791934,34.80828697,153.93,153.88,32.4544186]
[1745589792141,32.3914186,153.92,153.88,32.4544186]
[1745589792332,32.3914186,153.91,153.88,0.063]
[1745589792652,32.3914186,153.92,153.88,0.063]
[1745589793142,32.3914186,153.92,153.88,32.4544186]
[1745589793440,32.3914186,153.93,153.88,32.4544186]
[1745589793628,32.3914186,153.93,153.89,32.3914186]
[1745589793942,32.3914186,153.93,153.88,32.4544186]
[1745589794526,32.3914186,153.92,153.88,0.063]
[1745589794719,32.3914186,153.89,153.88,0.063]
[1745589794924,38.88956662,153.89,153.88,0.063]
[1745589795149,41.30665357,153.89,153.88,0.063]
[1745589795826,2.41708695,153.89,153.88,0.063]
[1745589796019,34.80850555,153.89,153.88,0.063]
[1745589796227,41.30665357,153.89,153.88,0.063]
[1745589797246,60.80850555,153.89,153.88,0.063]
[1745589798222,28.41708695,153.89,153.88,0.063]
[1745589798416,2.41708695,153.89,153.88,0.063]
[1745589798821,58.3914186,153.91,153.88,0.063]
[1745589798822,2.41708695,153.9,153.88,0.063]
[1745589799051,2.41708695,153.9,153.89,32.3914186]
[1745589799422,2.41708695,153.9,153.88,32.4544186]
[1745589799627,2.41708695,153.9,153.88,0.063]
[1745589799837,2.41708695,153.91,153.88,0.063]
[1745589800030,2.41708695,153.91,153.88,32.4544186]
[1745589800554,2.41708695,153.91,153.89,32.3914186]
[1745589800766,2.41708695,153.91,153.9,33.69089134]
[1745589800967,2.41708695,153.91,153.9,32.3914186]
[1745589803269,2.41708695,153.91,153.88,0.063]
[1745589803656,32.3914186,153.91,153.88,0.063]
[1745589804058,32.3914186,153.89,153.88,0.063]
[1745589804347,32.3914186,153.9,153.88,0.063]
[1745589804750,2.42294119,153.89,153.88,0.063]
[1745589806172,2.42294119,153.89,153.88,32.4544186]
[1745589806553,34.81435979,153.95,153.88,32.4544186]
[1745589806758,41.31001619,153.95,153.91,32.3914186]
[1745589807247,32.3914186,153.94,153.9,32.3914186]
[1745589807560,2.42294119,153.94,153.91,32.3914186]
[1745589808276,2.42294119,153.93,153.92,32.3914186]
[1745589809180,2.42294119,153.98,153.92,32.3914186]
[1745589809373,2.42294119,153.98,153.95,32.3914186]
[1745589809571,32.3914186,153.97,153.92,32.3914186]
[1745589810054,34.81435979,153.96,153.92,32.3914186]
[1745589810384,2.42294119,153.96,153.94,32.3914186]
[1745589810949,2.42294119,153.96,153.95,32.3914186]
[1745589811891,32.3914186,154.0,153.95,32.3914186]
[1745589812070,2.42383424,153.96,153.93,0.14216157]
[1745589812263,2.42383424,153.96,153.95,32.3914186]
[1745589812976,2.42383424,154.0,153.95,32.3914186]
[1745589813270,2.42383424,154.0,153.97,32.3914186]
[1745589813843,2.42383424,153.99,153.97,32.3914186]
[1745589814787,2.42383424,153.99,153.9,34.60964886]
[1745589814788,34.81525284,153.98,153.9,34.60964886]
[1745589814969,2.42383424,153.98,153.94,32.3914186]
[1745589815872,2.42383424,153.98,153.95,32.3914186]
[1745589816074,2.42383424,153.97,153.95,32.3914186]
[1745589816272,34.81525284,153.97,153.93,32.3914186]
[1745589816683,34.81525284,153.97,153.9,15.96]
[1745589816684,32.3914186,153.95,153.91,32.3914186]
[1745589816862,32.3914186,153.95,153.9,48.3514186]
[1745589817202,2.42383424,153.94,153.9,48.3514186]
[1745589817858,2.42383424,153.94,153.91,32.3914186]
[1745589818060,2.42383424,153.93,153.91,32.3914186]
[1745589818484,34.81525284,153.93,153.89,32.3914186]
[1745589818681,34.81525284,153.93,153.88,32.4544186]
[1745589818878,2.42383424,153.92,153.9,32.3914186]
[1745589819596,32.3914186,153.91,153.88,0.063]
[1745589819887,32.3914186,153.9,153.88,0.063]
[1745589820095,32.3914186,153.89,153.88,0.063]
[1745589820461,34.81391559,153.89,153.88,0.063]
[1745589822394,41.31206361,153.89,153.88,0.063]
[1745589823696,59.96171247,153.89,153.88,0.063]
[1745589823885,60.10387404,153.89,153.88,0.063]
[1745589824696,60.10387404,153.89,153.83,0.063]
[1745589824697,26.0,153.85,153.83,0.063]
[1745589824902,64.7828372,153.84,153.83,0.063]
[1745589825072,83.57464763,153.84,153.83,0.063]
[1745589825393,85.85498305,153.84,153.83,0.063]
[1745589826089,34.81391559,153.84,153.83,0.063]
[1745589826493,92.35524306,153.84,153.83,0.063]
[1745589826881,34.81391559,153.84,153.83,0.063]
[1745589827707,41.3141756,153.84,153.83,0.063]
[1745589828080,34.81391559,153.84,153.83,0.063]
[1745589828681,41.3141756,153.84,153.83,0.063]
[1745589829304,34.81391559,153.84,153.83,0.063]
[1745589829502,41.3141756,153.84,153.83,0.063]
[1745589829702,34.81391559,153.84,153.83,0.063]
[1745589830078,32.3914186,153.84,153.83,0.063]
[1745589830383,38.89167861,153.84,153.83,0.063]
[1745589830583,22.74121793,153.91,153.83,0.063]
[1745589830799,32.3914186,153.87,153.83,32.4544186]
[1745589831479,20.27338824,153.89,153.83,0.063]
[1745589831702,20.27338824,153.88,153.84,20.27338824]
[1745589831909,20.27338824,153.89,153.84,20.27338824]
[1745589832786,26.77171426,153.89,153.84,20.27338824]
[1745589832987,20.27338824,153.88,153.84,20.27338824]
[1745589833413,32.43764572,153.88,153.84,32.43764572]
[1745589834428,32.43764572,153.88,153.83,32.50064572]
[1745589834911,38.93663837,153.87,153.83,0.063]
[1745589835104,32.43764572,153.85,153.83,0.063]
[1745589835286,32.43764572,153.84,153.83,0.063]
[1745589837208,38.93790573,153.84,153.83,0.063]
[1745589837909,90.16736188,153.84,153.83,0.063]
[1745589838631,92.5800298,153.84,153.83,0.063]
[1745589840621,92.43786823,153.84,153.83,0.063]
[1745589840819,8.91292793,153.84,153.83,0.063]
[1745589841119,34.85031364,153.84,153.83,0.063]
[1745589841434,2.41266792,153.84,153.83,0.063]
[1745589842012,32.43764572,153.88,153.83,32.50064572]
[1745589842204,32.43764572,153.88,153.84,32.43764572]
[1745589842908,32.43764572,153.88,153.83,32.50064572]
[1745589843318,6.49863097,153.88,153.83,32.50064572]
[1745589843615,32.43764572,153.84,153.83,0.063]
[1745589844807,77.08729458,153.84,153.83,0.063]
[1745589845024,83.58755459,153.84,153.83,0.063]
[1745589845599,64.93790573,153.84,153.83,0.063]
[1745589846015,32.43764572,153.84,153.83,0.063]
[1745589846397,32.43764572,153.92,153.83,0.063]
[1745589846593,6.49772579,153.9,153.84,32.43764572]
[1745589846900,0.03,153.95,153.85,26.0]
[1745589847218,0.03,153.95,153.92,32.43764572]
[1745589848027,0.03,153.95,153.93,32.43764572]
[1745589848200,0.03,153.95,153.94,32.43764572]
[1745589849108,0.03,153.95,153.92,0.14216157]
[1745589849307,0.03,153.95,153.94,32.43764572]
[1745589851009,0.03,153.95,153.94,32.57980729]
[1745589851211,0.03,153.95,153.94,33.87854371]
[1745589851419,0.03,153.95,153.94,40.37458112]
[1745589851818,0.03,153.95,153.94,66.37458112]
[1745589852331,0.03,153.95,153.94,58.57980729]
[1745589853007,0.03,153.95,153.94,58.43764572]
[1745589853733,0.03,153.95,153.94,32.43764572]
[1745589854230,0.03,153.95,153.94,59.02437258]
[1745589854432,0.03,153.97,153.96,0.14216157]
[1745589854628,0.03,153.97,153.96,32.57980729]
[1745589855022,0.03,153.97,153.96,33.87847654]
[1745589855425,0.03,153.97,153.96,32.43764572]
[1745589856446,0.03,153.97,153.96,59.02334023]
[1745589856617,0.03,154.06,153.98,0.14216157]
[1745589856807,0.03,154.06,154.03,32.43764572]
[1745589857911,32.46764572,154.06,154.02,32.43764572]
[1745589858120,32.46764572,154.06,153.98,1.44056795]
[1745589858121,32.43764572,154.04,153.98,1.29840638]
[1745589858324,32.43764572,154.04,154.0,32.43764572]
[1745589858510,32.43764572,154.05,154.01,32.43764572]
[1745589859826,32.46764572,154.06,154.02,32.43764572]
[1745589860044,32.46764572,154.06,154.05,32.43764572]
[1745589860045,0.03,154.06,154.05,32.43764572]
[1745589861926,0.03,154.06,154.05,59.01882959]
[1745589862630,0.03,154.11,154.1,0.14216157]
[1745589862808,0.03,154.11,154.1,67.66682708]
[1745589863012,7.7122,154.25,154.13,26.0]
[1745589863219,7.7122,154.25,154.16,32.43764572]
[1745589863220,32.43764572,154.21,154.16,32.43764572]
[1745589863442,32.43764572,154.2,154.16,32.43764572]
[1745589863619,32.43764572,154.21,154.17,32.43764572]
[1745589864020,32.43764572,154.2,154.16,32.43764572]
[1745589864620,7.7122,154.25,154.17,32.43764572]
[1745589864821,6.4825619,154.26,154.22,32.43764572]
[1745589865034,6.4825619,154.26,154.23,32.43764572]
[1745589865226,6.48225715,154.27,154.24,32.43764572]
[1745589865432,32.48225715,154.27,154.23,32.43764572]
[1745589865640,32.48225715,154.27,154.18,1.29723327]
[1745589865847,1.0,154.38,154.26,32.43764572]
[1745589866018,37.80986202,154.39,154.27,32.43764572]
[1745589866217,32.43764572,154.33,154.28,32.43764572]
[1745589866418,32.43764572,154.32,154.27,32.43764572]
[1745589866644,32.43764572,154.33,154.28,32.43764572]
[1745589866817,32.43764572,154.33,154.25,1.29612728]
[1745589867123,32.43764572,154.3,154.25,32.43764572]
[1745589867325,6.47942487,154.34,154.29,32.43764572]
[1745589867514,6.47752299,154.38,154.31,32.43764572]
[1745589867715,32.43764572,154.37,154.32,32.43764572]
[1745589868139,32.47752299,154.38,154.32,32.43764572]
[1745589868353,0.03,154.36,154.32,32.43764572]
[1745589868566,0.03,154.36,154.33,32.43764572]
[1745589869044,32.46764572,154.36,154.32,32.43764572]
[1745589869254,32.43764572,154.35,154.29,15.14]
[1745589869553,32.43764572,154.35,154.31,32.43764572]
[1745589869766,0.03,154.36,154.33,32.43764572]
[1745589870242,32.46764572,154.36,154.29,15.14]
[1745589870439,38.917709,154.32,154.27,32.43764572]
[1745589870653,38.9164277,154.35,154.3,32.43764572]
[1745589870829,6.5084674,154.36,154.32,32.43764572]
[1745589871031,0.03,154.36,154.33,32.43764572]
[1745589871233,0.03,154.36,154.34,32.43764572]
[1745589871466,6.50836435,154.36,154.33,32.43764572]
[1745589871656,0.03,154.36,154.34,32.43764572]
[1745589871827,0.03,154.36,154.35,32.43764572]
[1745589872256,0.03,154.36,154.32,0.14216157]
[1745589872449,0.03,154.36,154.35,32.43764572]
[1745589872936,32.46764572,154.36,154.33,15.12]
[1745589873154,32.46764572,154.36,154.31,32.43764572]
[1745589873829,32.46764572,154.36,154.32,32.43764572]
[1745589874459,0.03,154.36,154.34,32.43764572]
[1745589874661,0.03,154.36,154.35,32.43764572]
[1745589874865,0.03,154.36,154.34,32.43764572]
[1745589875039,0.03,154.36,154.33,32.43764572]
[1745589875240,0.03,154.36,154.34,32.43764572]
[1745589876349,0.03,154.36,154.29,61.06550313]
[1745589876350,0.03,154.36,154.33,32.43764572]
[1745589876545,32.43764572,154.34,154.29,26.0]
[1745589876754,32.43764572,154.33,154.29,26.0]
[1745589876980,32.43764572,154.32,154.28,47.55764572]
[1745589877164,32.43764572,154.34,154.3,32.43764572]
[1745589877483,32.43764572,154.35,154.3,32.43764572]
[1745589877668,32.43764572,154.34,154.29,32.43764572]
[1745589877974,32.43764572,154.33,154.28,15.12]
[1745589878157,32.43764572,154.3,154.28,15.12]
[1745589878352,32.43764572,154.3,154.26,47.55764572]
[1745589878554,32.43764572,154.32,154.22,1.5326]
[1745589878765,32.43764572,154.26,154.22,32.43764572]
[1745589879090,32.43764572,154.28,154.24,32.43764572]
[1745589879449,32.43764572,154.25,154.21,47.55764572]
[1745589879685,32.43764572,154.24,154.21,15.12]
[1745589879887,18.79181043,154.31,154.21,15.12]
[1745589880190,32.43764572,154.24,154.21,15.12]
[1745589880681,18.79181043,154.31,154.21,15.12]
[1745589880682,32.43764572,154.23,154.21,15.12]
[1745589881294,26.0,154.3,154.22,32.43764572]
[1745589881593,32.43764572,154.26,154.21,47.55764572]
[1745589881951,32.43764572,154.25,154.21,15.12]
[1745589882152,32.43764572,154.22,154.18,15.12]
[1745589882659,32.43764572,154.21,154.18,15.12]
[1745589883071,32.43764572,154.22,154.18,15.12]
[1745589883464,38.92193994,154.22,154.18,15.12]
[1745589883673,32.43764572,154.21,154.18,15.12]
[1745589884568,38.92341949,154.19,154.13,27.29708703]
[1745589884767,38.92341949,154.19,154.14,32.43764572]
[1745589884979,32.43764572,154.17,154.12,16.45731467]
[1745589885194,32.43764572,154.14,154.1,1.29744063]
[1745589885399,32.43764572,154.16,154.11,32.43764572]
[1745589886073,32.43764572,154.15,154.1,32.43764572]
[1745589886289,32.43764572,154.16,154.11,32.43764572]
[1745589886959,38.924575,154.16,154.08,15.30216157]
[1745589887164,32.43764572,154.15,154.1,32.43764572]
[1745589887564,32.43764572,154.16,154.11,32.43764572]
[1745589888963,32.43764572,154.15,154.1,32.43764572]
[1745589889360,32.43764572,154.13,154.08,15.30216157]
[1745589889564,32.43764572,154.14,154.09,32.43764572]
[1745589891188,26.0,154.19,154.12,32.43764572]
[1745589891492,32.43764572,154.16,154.11,32.43764572]
[1745589892167,32.43764572,154.16,154.1,1.43976267]
[1745589892375,32.43764572,154.16,154.11,32.43764572]
[1745589893301,32.43764572,154.16,154.12,32.43764572]
[1745589893794,32.43764572,154.16,154.11,32.43764572]
[1745589894545,32.43764572,154.15,154.1,33.87740839]
[1745589895061,6.48592554,154.18,154.11,32.43764572]
[1745589895293,32.43764572,154.16,154.12,1.29742483]
[1745589895663,32.43764572,154.16,154.12,33.73507055]
[1745589895891,32.43764572,154.16,154.12,1.29742483]
[1745589896195,32.43764572,154.19,154.14,32.43764572]
[1745589896406,32.43764572,154.17,154.13,33.73489541]
[1745589896692,32.43764572,154.17,154.13,1.29724969]
[1745589897504,32.43764572,154.18,154.13,33.73489541]
[1745589897703,6.48466377,154.21,154.14,32.43764572]
[1745589897904,32.43764572,154.17,154.13,0.14216157]
[1745589898193,32.43764572,154.16,154.11,1.29729009]
[1745589898500,32.43764572,154.16,154.11,33.73493581]
[1745589898868,32.43764572,154.15,154.11,33.73493581]
[1745589899079,32.43764572,154.15,154.11,1.29729009]
[1745589899773,32.43764572,154.13,154.09,1.29750575]
[1745589900313,42.21398458,154.19,154.09,1.29750575]
[1745589900314,32.43764572,154.14,154.09,1.29750575]
[1745589900476,32.43764572,154.15,154.09,33.73515147]
[1745589901185,26.0,154.19,154.09,33.73515147]
[1745589901186,32.43764572,154.17,154.12,32.43764572]
[1745589901404,32.43764572,154.17,154.12,33.73498521]
[1745589901573,32.43764572,154.16,154.12,1.29733949]
[1745589902190,32.43764572,154.17,154.12,33.73498521]
[1745589902409,32.43764572,154.18,154.13,32.43764572]
[1745589902606,32.43764572,154.18,154.13,33.73489797]
[1745589902807,32.43764572,154.18,154.14,32.43764572]
[1745589903022,32.43764572,154.2,154.15,32.43764572]
[1745589903175,32.43764572,154.18,154.14,15.16]
[1745589903374,32.43764572,154.15,154.11,1.29716139]
[1745589903577,32.43764572,154.16,154.11,33.73480711]
[1745589904397,32.43764572,154.17,154.12,32.43764572]
[1745589904591,32.43764572,154.17,154.12,33.73501779]
[1745589905206,32.43764572,154.18,154.13,32.43764572]
[1745589905916,32.43764572,154.19,154.14,33.73484924]
[1745589906588,6.51440128,154.22,154.15,32.43764572]
[1745589906788,32.43764572,154.2,154.15,32.43764572]
[1745589907114,32.43764572,154.19,154.15,32.43764572]
[1745589907498,32.43764572,154.19,154.13,7.92726256]
[1745589907499,6.51440128,154.22,154.13,7.92726256]
[1745589907690,32.43764572,154.2,154.15,32.43764572]
[1745589908030,6.51440128,154.22,154.14,32.43764572]
[1745589908031,32.43764572,154.19,154.14,32.43764572]
[1745589908188,32.43764572,154.18,154.13,33.87690259]
[1745589908393,32.43764572,154.19,154.14,32.43764572]
[1745589909493,32.43764572,154.2,154.15,32.43764572]
[1745589909715,32.43764572,154.21,154.16,32.43764572]
[1745589909900,0.03,154.22,154.2,32.43764572]
[1745589910107,0.03,154.22,154.21,66.38945615]
[1745589910995,0.03,154.22,154.21,92.38945615]
[1745589911391,0.03,154.22,154.21,98.87411992]
[1745589916139,0.03,154.22,154.21,92.38945615]
[1745589916305,0.03,154.22,154.21,41.16]
[1745589916502,0.03,154.22,154.21,41.30216157]
[1745589916831,0.03,154.22,154.21,73.59764572]
[1745589917032,0.03,154.22,154.21,73.73980729]
[1745589917211,0.03,154.22,154.21,47.73980729]
[1745589917514,0.03,154.22,154.21,47.59764572]
[1745589917899,0.03,154.22,154.21,47.73980729]
[1745589918826,0.03,154.22,154.21,98.87411992]
[1745589919140,0.03,154.22,154.21,100.17041515]
[1745589919626,6.47878198,154.35,154.21,74.17041515]
[1745589919797,1.6314,154.36,154.27,26.14216157]
[1745589919798,32.43764572,154.34,154.27,26.14216157]
[1745589919998,32.43764572,154.32,154.27,26.14216157]
[1745589920224,32.43764572,154.32,154.27,58.57980729]
[1745589920437,32.43764572,154.32,154.28,32.43764572]
[1745589920609,34.83576751,154.33,154.29,32.43764572]
[1745589920798,2.39812179,154.33,154.3,32.43764572]
[1745589921000,32.43764572,154.35,154.3,32.43764572]
[1745589921201,32.43764572,154.34,154.3,32.43764572]
[1745589921401,12.63213522,154.38,154.31,32.43764572]
[1745589921626,32.43764572,154.34,154.29,26.0]
[1745589921829,32.43764572,154.34,154.3,32.43764572]
[1745589922035,32.43764572,154.35,154.31,32.43764572]
[1745589922537,32.43764572,154.38,154.33,32.43764572]
[1745589922716,32.43764572,154.37,154.32,32.43764572]
[1745589922921,32.43764572,154.33,154.28,0.14216157]
[1745589923236,32.43764572,154.34,154.29,32.43764572]
[1745589923539,32.43764572,154.34,154.3,32.43764572]
[1745589923746,6.47752299,154.38,154.3,32.43764572]
[1745589924047,6.47752299,154.38,154.28,7.91974055]
[1745589924344,32.43764572,154.36,154.32,32.43764572]
[1745589924581,22.67133047,154.38,154.28,1.43805031]
[1745589924736,32.43764572,154.33,154.29,32.43764572]
[1745589925347,22.67133047,154.38,154.28,1.43805031]
[1745589925348,32.43764572,154.35,154.31,32.43764572]
[1745589925519,32.43764572,154.34,154.3,32.43764572]
[1745589925716,6.47857057,154.36,154.3,32.43764572]
[1745589926022,32.43764572,154.33,154.29,32.43764572]
[1745589926420,32.43764572,154.34,154.29,32.43764572]
[1745589926622,32.43764572,154.32,154.27,32.57980729]
[1745589926828,32.43764572,154.32,154.28,32.43764572]
[1745589927131,32.43764572,154.32,154.27,32.43764572]
[1745589927333,32.43764572,154.33,154.28,32.43764572]
[1745589927639,32.43764572,154.35,154.3,32.43764572]
[1745589928229,32.43764572,154.35,154.31,32.43764572]
[1745589928428,32.43764572,154.35,154.3,32.43764572]
[1745589928636,26.0,154.38,154.3,32.43764572]
[1745589928637,32.43764572,154.34,154.3,32.43764572]
[1745589928939,32.43764572,154.35,154.3,32.43764572]
[1745589929319,26.0,154.37,154.31,32.43764572]
[1745589929632,32.43764572,154.37,154.33,32.43764572]
[1745589930305,32.43764572,154.38,154.33,32.43764572]
[1745589930505,32.43764572,154.38,154.34,32.43764572]
[1745589931134,0.047252,154.4,154.33,1.29551865]
[1745589931341,32.48489772,154.4,154.35,32.43764572]
[1745589931547,32.43764572,154.38,154.34,32.43764572]
[1745589931712,32.43764572,154.38,154.33,32.43764572]
[1745589931912,32.43764572,154.39,154.34,32.43764572]
[1745589932809,32.43764572,154.35,154.32,14.94]
[1745589934130,32.43764572,154.34,154.3,32.43764572]
[1745589934349,6.47880589,154.35,154.26,26.0]
[1745589934518,32.43764572,154.31,154.27,47.37764572]
[1745589934710,32.43764572,154.32,154.28,32.43764572]
[1745589935134,6.47880589,154.35,154.29,32.43764572]
[1745589935339,32.43764572,154.34,154.3,32.43764572]
[1745589935510,6.47900408,154.35,154.29,33.73360613]
[1745589935716,32.43764572,154.33,154.29,33.73360613]
[1745589936644,32.43764572,154.32,154.27,47.37764572]
[1745589936852,32.43764572,154.31,154.27,47.37764572]
[1745589937418,8.06866227,154.36,154.3,32.43764572]
[1745589937635,32.43764572,154.34,154.29,32.43764572]
[1745589937838,32.43764572,154.34,154.3,32.43764572]
[1745589938349,32.43764572,154.36,154.31,32.43764572]
[1745589938553,32.43764572,154.35,154.31,32.43764572]
[1745589938728,32.43764572,154.35,154.3,32.43764572]
[1745589938929,32.43764572,154.34,154.3,32.43764572]
[1745589939237,32.43764572,154.35,154.3,32.43764572]
[1745589939412,20.15128088,154.35,154.3,20.15128088]
[1745589940338,6.47843254,154.36,154.3,20.15128088]
[1745589940543,20.15128088,154.35,154.3,20.15128088]
[1745589941445,20.15128088,154.32,154.27,14.94]
[1745589941625,20.15128088,154.32,154.28,20.15128088]
[1745589942027,6.47752299,154.38,154.29,20.15128088]
[1745589942246,20.15128088,154.35,154.31,20.15128088]
[1745589943662,20.15128088,154.32,154.27,35.23344245]
[1745589943859,22.67133047,154.38,154.27,35.23344245]
[1745589944166,20.15128088,154.3,154.27,14.94]
[1745589944967,20.15128088,154.28,154.23,217.08]
[1745589945174,20.15128088,154.29,154.24,20.15128088]
[1745589945837,20.15128088,154.29,154.25,20.15128088]
[1745589946731,20.15128088,154.29,154.24,20.29344245]
[1745589947136,6.4807652,154.31,154.26,20.15128088]
[1745589947437,20.15128088,154.28,154.24,20.29344245]
[1745589948855,16.19695497,154.35,154.24,20.29344245]
[1745589948856,1.5,154.41,154.27,46.29344245]
[1745589949169,1.5,154.41,154.25,60.84008645]
[1745589949170,0.047252,154.4,154.36,20.15128088]
[1745589949755,20.15128088,154.38,154.35,14.88]
[1745589950256,20.15128088,154.39,154.35,14.88]
[1745589950764,2.40421429,154.38,154.35,14.88]
[1745589950962,20.15128088,154.37,154.3,16.17562848]
[1745589951142,20.15128088,154.37,154.32,20.15128088]
[1745589951338,22.55549517,154.36,154.31,20.15128088]
[1745589951541,2.40421429,154.36,154.3,16.17562848]
[1745589951743,22.55549517,154.36,154.31,20.15128088]
[1745589951941,2.40421429,154.36,154.32,20.15128088]
[1745589952266,22.55549517,154.36,154.31,20.15128088]
[1745589952763,2.40421429,154.36,154.32,20.15128088]
[1745589952964,2.40421429,154.35,154.32,20.15128088]
[1745589953563,2.40421429,154.35,154.33,20.15128088]
[1745589953761,20.15128088,154.38,154.33,20.15128088]
[1745589954060,6.47710343,154.39,154.33,20.15128088]
[1745589954259,20.15128088,154.38,154.33,20.15128088]
[1745589954764,2.41449229,154.37,154.33,20.15128088]
[1745589955566,2.41449229,154.37,154.34,20.15128088]
[1745589956035,2.41449229,154.36,154.33,20.15128088]
[1745589956358,2.41449229,154.36,154.32,20.15128088]
[1745589957060,2.41449229,154.35,154.32,20.15128088]
[1745589957757,20.15128088,154.38,154.33,20.15128088]
[1745589958138,26.62892611,154.38,154.33,20.15128088]
[1745589958555,2.41528234,154.37,154.33,20.15128088]
[1745589959573,2.41528234,154.36,154.33,20.15128088]
[1745589960262,2.41528234,154.36,154.34,20.15128088]
[1745589960555,20.15128088,154.39,154.34,20.15128088]
[1745589961066,0.047252,154.4,154.38,20.15128088]
[1745589961237,0.047252,154.4,154.36,35.03128088]
[1745589961436,22.56690179,154.39,154.36,14.88]
[1745589961745,2.41562091,154.39,154.37,20.15128088]
[1745589962164,2.41562091,154.39,154.38,20.15128088]
[1745589962362,0.047252,154.4,154.38,20.15128088]
[1745589962758,0.047252,154.4,154.37,20.15128088]
[1745589962963,0.047252,154.4,154.35,6.5283]
[1745589963143,20.15128088,154.38,154.36,14.88]
[1745589963564,20.15128088,154.37,154.36,14.88]
[1745589964044,2.41577067,154.37,154.36,14.88]
[1745589965346,2.41577067,154.37,154.36,35.03128088]
[1745589965673,22.56705155,154.37,154.36,14.88]
[1745589965886,2.41577067,154.37,154.36,14.88]
[1745589966573,22.56705155,154.37,154.36,14.88]
[1745589967755,2.41577067,154.37,154.36,86.15929201]
[1745589967960,0.047252,154.4,154.37,18.79181043]